[Event "Late-Titled-Tuesday-Blitz-February-13-2024"]
[Site "Chess.com"]
[Date "2024.02.13"]
[Round "3"]
[White "Jahonas"]
[Black "zano2023"]
[Result "1-0"]
[WhiteElo "2368"]
[BlackElo "2135"]
[TimeControl "180+1"]
[EndTime "14:27:12 PST"]
[Termination "Jahonas won by resignation"]

1. d4 {[%clk 0:03:00.9]} 1... e5 {[%clk 0:02:59.3]} 2. dxe5 {[%clk 0:03:00.4]}
2... d6 {[%clk 0:02:59.9]} 3. Nf3 {[%clk 0:03:00.8]} 3... Bg4 {[%clk 0:02:58.4]}
4. Bg5 {[%clk 0:03:00.8]} 4... Qd7 {[%clk 0:02:58.1]} 5. Nc3 {[%clk 0:02:59.7]}
5... Nc6 {[%clk 0:02:57.1]} 6. e3 {[%clk 0:02:55.9]} 6... dxe5 {[%clk
0:02:57.2]} 7. Qxd7+ {[%clk 0:02:54.9]} 7... Bxd7 {[%clk 0:02:57]} 8. Bb5 {[%clk
0:02:54.9]} 8... f6 {[%clk 0:02:54.3]} 9. Bh4 {[%clk 0:02:53.7]} 9... O-O-O
{[%clk 0:02:53.4]} 10. O-O-O {[%clk 0:02:53.5]} 10... Nge7 {[%clk 0:02:51.4]}
11. Bg3 {[%clk 0:02:51.6]} 11... a6 {[%clk 0:02:50]} 12. Ba4 {[%clk 0:02:50.5]}
12... Be6 {[%clk 0:02:48.5]} 13. Rxd8+ {[%clk 0:02:47.7]} 13... Kxd8 {[%clk
0:02:47.2]} 14. Rd1+ {[%clk 0:02:47.1]} 14... Kc8 {[%clk 0:02:47]} 15. Ne4
{[%clk 0:02:41]} 15... b6 {[%clk 0:02:25.4]} 16. Bb3 {[%clk 0:02:39.1]} 16...
Bxb3 {[%clk 0:02:23.8]} 17. axb3 {[%clk 0:02:38.7]} 17... Nf5 {[%clk 0:02:21.8]}
18. Nh4 {[%clk 0:02:35.7]} 18... Nxh4 {[%clk 0:02:15.3]} 19. Bxh4 {[%clk
0:02:35.1]} 19... h6 {[%clk 0:02:07]} 20. Nc3 {[%clk 0:02:29.9]} 20... Ne7
{[%clk 0:01:56.6]} 21. f3 {[%clk 0:02:21]} 21... g5 {[%clk 0:01:56.2]} 22. Bf2
{[%clk 0:02:20.1]} 22... Bg7 {[%clk 0:01:47.4]} 23. Nd5 {[%clk 0:02:19.3]} 23...
Nxd5 {[%clk 0:01:46.7]} 24. Rxd5 {[%clk 0:02:19.1]} 24... Rd8 {[%clk 0:01:47.2]}
25. c4 {[%clk 0:02:14.4]} 25... c6 {[%clk 0:01:42.5]} 26. Rxd8+ {[%clk
0:02:13.9]} 26... Kxd8 {[%clk 0:01:42.7]} 27. e4 {[%clk 0:02:14.4]} 27... b5
{[%clk 0:01:41.8]} 28. Kc2 {[%clk 0:02:13.1]} 28... Bf8 {[%clk 0:01:41.2]} 29.
Kd3 {[%clk 0:02:12.5]} 29... Kc7 {[%clk 0:01:33.2]} 30. Be3 {[%clk 0:02:11.4]}
30... h5 {[%clk 0:01:31.2]} 31. g4 {[%clk 0:02:05.4]} 31... h4 {[%clk
0:01:27.8]} 32. h3 {[%clk 0:02:04.6]} 32... a5 {[%clk 0:01:25.2]} 33. Bd2 {[%clk
0:02:00.7]} 33... Kb6 {[%clk 0:01:22.6]} 34. Be3+ {[%clk 0:01:57]} 34... Bc5
{[%clk 0:01:14.5]} 35. Bd2 {[%clk 0:01:48.3]} 35... Bd4 {[%clk 0:01:10.8]} 36.
Kc2 {[%clk 0:01:46.5]} 36... a4 {[%clk 0:01:05.6]} 37. cxb5 {[%clk 0:01:38.5]}
37... Kxb5 {[%clk 0:00:53.1]} 38. bxa4+ {[%clk 0:01:37.1]} 38... Kxa4 {[%clk
0:00:52.3]} 39. b3+ {[%clk 0:01:31]} 39... Kb5 {[%clk 0:00:43.3]} 40. Kd3 {[%clk
0:01:30.4]} 40... c5 {[%clk 0:00:42.8]} 41. Bc1 {[%clk 0:01:30.2]} 41... Kb4
{[%clk 0:00:41.1]} 42. Kc2 {[%clk 0:01:30]} 42... Bc3 {[%clk 0:00:34.3]} 43.
Ba3+ {[%clk 0:01:25.1]} 43... Kxa3 {[%clk 0:00:31.9]} 44. Kxc3 {[%clk
0:01:25.5]} 44... Ka2 {[%clk 0:00:29.9]} 45. Kc4 {[%clk 0:01:23.9]} 45... Kb2
{[%clk 0:00:30.5]} 46. Kxc5 {[%clk 0:01:16.4]} 46... Kxb3 {[%clk 0:00:31.2]} 47.
Kd5 {[%clk 0:01:16.9]} 47... Kc3 {[%clk 0:00:32.1]} 48. Ke6 {[%clk 0:01:17.3]}
48... Kd3 {[%clk 0:00:32.9]} 49. Kxf6 {[%clk 0:01:17.7]} 49... Ke3 {[%clk
0:00:33.5]} 50. Kxe5 {[%clk 0:01:16.6]} 50... Kxf3 {[%clk 0:00:31.9]} 51. Kf5
{[%clk 0:01:17]} 51... Kg3 {[%clk 0:00:31.2]} 52. e5 {[%clk 0:01:17.5]} 52...
Kxh3 {[%clk 0:00:31.4]} 53. e6 {[%clk 0:01:18.1]} 53... Kg2 {[%clk 0:00:31.7]}
54. e7 {[%clk 0:01:18.7]} 54... h3 {[%clk 0:00:32.6]} 55. e8=Q {[%clk
0:01:19.3]} 55... h2 {[%clk 0:00:33.3]} 56. Qe4+ {[%clk 0:01:19.2]} 56... Kg3
{[%clk 0:00:32.2]} 57. Kxg5 {[%clk 0:01:16.2]} 1-0

[Event "Late-Titled-Tuesday-Blitz-February-13-2024"]
[Site "Chess.com"]
[Date "2024.02.13"]
[Round "3"]
[White "sotochess"]
[Black "Nemsko"]
[Result "1-0"]
[WhiteElo "2588"]
[BlackElo "2396"]
[TimeControl "180+1"]
[EndTime "14:27:16 PST"]
[Termination "sotochess won by resignation"]

1. e4 {[%clk 0:03:00]} 1... e5 {[%clk 0:02:59.3]} 2. Nf3 {[%clk 0:02:59.8]} 2...
Nc6 {[%clk 0:02:59.6]} 3. Bc4 {[%clk 0:02:51.4]} 3... Bc5 {[%clk 0:02:57.8]} 4.
O-O {[%clk 0:02:50.6]} 4... Nf6 {[%clk 0:02:57]} 5. d3 {[%clk 0:02:50.7]} 5...
a6 {[%clk 0:02:50.9]} 6. c3 {[%clk 0:02:49.1]} 6... Ba7 {[%clk 0:02:45.9]} 7. a4
{[%clk 0:02:48]} 7... O-O {[%clk 0:02:45.6]} 8. Be3 {[%clk 0:02:47.7]} 8... d6
{[%clk 0:02:38.6]} 9. Nbd2 {[%clk 0:02:47.1]} 9... h6 {[%clk 0:02:32]} 10. b4
{[%clk 0:02:36.5]} 10... Ne7 {[%clk 0:02:24.1]} 11. Bxa7 {[%clk 0:02:33.2]}
11... Rxa7 {[%clk 0:02:25]} 12. Re1 {[%clk 0:02:30.6]} 12... Ng6 {[%clk
0:02:24.9]} 13. Nf1 {[%clk 0:02:29.7]} 13... Kh7 {[%clk 0:02:15.1]} 14. Bb3
{[%clk 0:02:25.4]} 14... c6 {[%clk 0:02:11.7]} 15. d4 {[%clk 0:02:24.6]} 15...
Qe7 {[%clk 0:02:07.3]} 16. Ng3 {[%clk 0:02:23.4]} 16... Rd8 {[%clk 0:01:54.4]}
17. a5 {[%clk 0:02:03.6]} 17... Ra8 {[%clk 0:01:52.7]} 18. Qc2 {[%clk
0:02:00.8]} 18... Bg4 {[%clk 0:01:42.7]} 19. Nd2 {[%clk 0:02:00]} 19... Be6
{[%clk 0:01:39.7]} 20. Nc4 {[%clk 0:01:56]} 20... Rac8 {[%clk 0:01:19.4]} 21.
Nf5 {[%clk 0:01:53.2]} 21... Qc7 {[%clk 0:01:14.8]} 22. Nb6 {[%clk 0:01:48.3]}
22... Rb8 {[%clk 0:01:13.9]} 23. Rad1 {[%clk 0:01:40]} 23... Ne7 {[%clk
0:00:51.4]} 24. Ng3 {[%clk 0:01:03.9]} 24... Ng6 {[%clk 0:00:39.8]} 25. d5
{[%clk 0:00:56.2]} 25... cxd5 {[%clk 0:00:37.6]} 26. exd5 {[%clk 0:00:55.3]}
26... Bg4 {[%clk 0:00:35.3]} 27. f3 {[%clk 0:00:53.9]} 27... Bd7 {[%clk
0:00:34.3]} 28. c4 {[%clk 0:00:52.8]} 28... Kg8 {[%clk 0:00:31]} 29. Rc1 {[%clk
0:00:51.9]} 29... Be8 {[%clk 0:00:19.8]} 30. c5 {[%clk 0:00:51]} 30... dxc5
{[%clk 0:00:20.7]} 31. bxc5 {[%clk 0:00:50.6]} 31... Qe7 {[%clk 0:00:07.5]} 32.
d6 {[%clk 0:00:49.6]} 32... Qf8 {[%clk 0:00:06.9]} 33. Qxg6 {[%clk 0:00:48.9]}
1-0

[Event "Late-Titled-Tuesday-Blitz-February-13-2024"]
[Site "Chess.com"]
[Date "2024.02.13"]
[Round "3"]
[White "VinzentSpitzl"]
[Black "Rutricks"]
[Result "0-1"]
[WhiteElo "2500"]
[BlackElo "2700"]
[TimeControl "180+1"]
[EndTime "14:27:18 PST"]
[Termination "Rutricks won by resignation"]

1. e4 {[%clk 0:03:00.9]} 1... g6 {[%clk 0:01:44.1]} 2. d4 {[%clk 0:02:44]} 2...
Bg7 {[%clk 0:01:45]} 3. Nc3 {[%clk 0:02:43.7]} 3... c6 {[%clk 0:01:45.6]} 4. h3
{[%clk 0:02:40.6]} 4... d5 {[%clk 0:01:45.5]} 5. Nf3 {[%clk 0:02:40]} 5... dxe4
{[%clk 0:01:46.4]} 6. Nxe4 {[%clk 0:02:40.4]} 6... Nf6 {[%clk 0:01:47.1]} 7.
Nxf6+ {[%clk 0:02:39.6]} 7... exf6 {[%clk 0:01:48]} 8. Bc4 {[%clk 0:02:38.6]}
8... O-O {[%clk 0:01:48.9]} 9. O-O {[%clk 0:02:38.6]} 9... a5 {[%clk 0:01:49.8]}
10. a4 {[%clk 0:02:37.8]} 10... Na6 {[%clk 0:01:50.7]} 11. c3 {[%clk 0:02:36.4]}
11... Nc7 {[%clk 0:01:51.6]} 12. Bf4 {[%clk 0:02:35.5]} 12... Nd5 {[%clk
0:01:52.5]} 13. Bg3 {[%clk 0:02:35.4]} 13... Be6 {[%clk 0:01:53.4]} 14. Bb3
{[%clk 0:02:32.7]} 14... Re8 {[%clk 0:01:53.4]} 15. Re1 {[%clk 0:02:32.7]} 15...
Qb6 {[%clk 0:01:53]} 16. Nd2 {[%clk 0:02:11.6]} 16... Qa6 {[%clk 0:01:25.8]} 17.
Nc4 {[%clk 0:02:01.4]} 17... Nxc3 {[%clk 0:01:25.3]} 18. bxc3 {[%clk 0:01:44.8]}
18... Bxc4 {[%clk 0:01:25.3]} 19. Bc2 {[%clk 0:01:37.4]} 19... Bh6 {[%clk
0:01:09.3]} 20. Rb1 {[%clk 0:01:33.3]} 20... Be2 {[%clk 0:01:06.8]} 21. Rxe2
{[%clk 0:01:21.8]} 21... Qxe2 {[%clk 0:01:07.7]} 22. Bd3 {[%clk 0:01:18.4]}
22... Qxd1+ {[%clk 0:01:05.6]} 23. Rxd1 {[%clk 0:01:19.3]} 23... Re7 {[%clk
0:00:57.7]} 24. Rb1 {[%clk 0:01:16.2]} 24... Bd2 {[%clk 0:00:56.6]} 25. Rb3
{[%clk 0:01:14]} 25... b5 {[%clk 0:00:43.7]} 26. axb5 {[%clk 0:01:07.9]} 26...
a4 {[%clk 0:00:44.6]} 27. Ra3 {[%clk 0:01:07.7]} 27... Bc1 {[%clk 0:00:43.2]}
28. Ra2 {[%clk 0:01:03.7]} 28... cxb5 {[%clk 0:00:38.5]} 29. Bxb5 {[%clk
0:00:58.1]} 29... a3 {[%clk 0:00:37.5]} 30. d5 {[%clk 0:00:54.9]} 30... Bb2
{[%clk 0:00:35.7]} 31. d6 {[%clk 0:00:50.7]} 31... Re1+ {[%clk 0:00:35.9]} 32.
Kh2 {[%clk 0:00:50.2]} 32... Ra1 {[%clk 0:00:36.2]} 33. Rxa1 {[%clk 0:00:36.7]}
33... Bxa1 {[%clk 0:00:37.1]} 34. d7 {[%clk 0:00:37.3]} 34... Bxc3 {[%clk
0:00:33.9]} 35. Bc4 {[%clk 0:00:30.5]} 35... Be5 {[%clk 0:00:30.9]} 0-1

[Event "Late-Titled-Tuesday-Blitz-February-13-2024"]
[Site "Chess.com"]
[Date "2024.02.13"]
[Round "3"]
[White "LLRChess"]
[Black "Quattroporte300"]
[Result "1-0"]
[WhiteElo "2592"]
[BlackElo "2405"]
[TimeControl "180+1"]
[EndTime "14:27:18 PST"]
[Termination "LLRChess won by resignation"]

1. e4 {[%clk 0:03:00.9]} 1... c5 {[%clk 0:02:59.9]} 2. Nf3 {[%clk 0:03:00.8]}
2... Nc6 {[%clk 0:03:00.2]} 3. c3 {[%clk 0:03:00.9]} 3... d5 {[%clk 0:02:59.6]}
4. exd5 {[%clk 0:03:01.8]} 4... Qxd5 {[%clk 0:03:00.3]} 5. Na3 {[%clk
0:03:01.8]} 5... Nf6 {[%clk 0:03:00.2]} 6. Bc4 {[%clk 0:03:01.3]} 6... Qe4+
{[%clk 0:02:48.2]} 7. Be2 {[%clk 0:03:01.1]} 7... Qg6 {[%clk 0:02:34.1]} 8. Nb5
{[%clk 0:03:00]} 8... Nd5 {[%clk 0:02:02.6]} 9. c4 {[%clk 0:02:36.5]} 9... Nf4
{[%clk 0:02:00.7]} 10. g3 {[%clk 0:02:36.8]} 10... Ng2+ {[%clk 0:01:48.1]} 11.
Kf1 {[%clk 0:02:37.1]} 11... Bh3 {[%clk 0:01:48.1]} 12. Kg1 {[%clk 0:02:32.7]}
12... O-O-O {[%clk 0:01:47.9]} 13. d3 {[%clk 0:02:17.5]} 13... h6 {[%clk
0:01:25.5]} 14. Bf1 {[%clk 0:02:09.5]} 14... e5 {[%clk 0:01:06.6]} 15. Bxg2
{[%clk 0:02:02.3]} 15... Bxg2 {[%clk 0:01:05.9]} 16. Kxg2 {[%clk 0:02:03.2]}
16... Rxd3 {[%clk 0:01:06.1]} 17. Qe2 {[%clk 0:02:01.2]} 17... e4 {[%clk
0:01:01.1]} 18. Nd2 {[%clk 0:01:50]} 18... f5 {[%clk 0:00:56.3]} 19. Nf1 {[%clk
0:01:47.9]} 19... Be7 {[%clk 0:00:54.1]} 20. Nc3 {[%clk 0:01:39.4]} 20... Nd4
{[%clk 0:00:50.5]} 21. Qe1 {[%clk 0:01:37.2]} 21... Nc2 {[%clk 0:00:47.6]} 22.
Qe2 {[%clk 0:01:37.5]} 22... Nxa1 {[%clk 0:00:48.3]} 23. Be3 {[%clk 0:01:29.6]}
23... Qe6 {[%clk 0:00:42.5]} 24. Nd5 {[%clk 0:01:27.6]} 24... g5 {[%clk
0:00:41.5]} 25. Nd2 {[%clk 0:01:19.6]} 25... Nc2 {[%clk 0:00:40.1]} 26. Nb3
{[%clk 0:01:09]} 26... Nxe3+ {[%clk 0:00:38.8]} 27. fxe3 {[%clk 0:01:09.4]}
27... f4 {[%clk 0:00:33]} 28. exf4 {[%clk 0:01:01.4]} 28... gxf4 {[%clk
0:00:32.7]} 29. Nxf4 {[%clk 0:00:59.6]} 29... Qxc4 {[%clk 0:00:25.3]} 30. Rc1
{[%clk 0:00:57.3]} 30... Qb4 {[%clk 0:00:20.6]} 31. Nxd3 {[%clk 0:00:53.5]}
31... exd3 {[%clk 0:00:15]} 32. Qxe7 {[%clk 0:00:53.4]} 32... Kb8 {[%clk
0:00:13.2]} 33. Qe5+ {[%clk 0:00:52.3]} 33... Kc8 {[%clk 0:00:10.1]} 34. Rxc5+
{[%clk 0:00:50]} 1-0

[Event "Late-Titled-Tuesday-Blitz-February-13-2024"]
[Site "Chess.com"]
[Date "2024.02.13"]
[Round "3"]
[White "Lady_Nika"]
[Black "picturesquecheck"]
[Result "0-1"]
[WhiteElo "2573"]
[BlackElo "2413"]
[TimeControl "180+1"]
[EndTime "14:27:24 PST"]
[Termination "picturesquecheck won by resignation"]

1. d4 {[%clk 0:03:00.9]} 1... Nf6 {[%clk 0:02:57]} 2. e3 {[%clk 0:03:01.8]} 2...
d5 {[%clk 0:02:56.5]} 3. f4 {[%clk 0:03:02.6]} 3... Bg4 {[%clk 0:02:55.8]} 4.
Nf3 {[%clk 0:03:03.5]} 4... e6 {[%clk 0:02:55.8]} 5. Be2 {[%clk 0:03:03.7]} 5...
Be7 {[%clk 0:02:55.8]} 6. Ne5 {[%clk 0:03:04]} 6... Bxe2 {[%clk 0:02:55.2]} 7.
Qxe2 {[%clk 0:03:04.9]} 7... O-O {[%clk 0:02:55.7]} 8. O-O {[%clk 0:03:04.7]}
8... c5 {[%clk 0:02:56.3]} 9. Nd2 {[%clk 0:03:04]} 9... Nc6 {[%clk 0:02:56.2]}
10. c3 {[%clk 0:03:04.2]} 10... Rc8 {[%clk 0:02:55.5]} 11. Rf3 {[%clk
0:03:04.3]} 11... a6 {[%clk 0:02:51]} 12. Rh3 {[%clk 0:03:04.3]} 12... g6 {[%clk
0:02:49.1]} 13. Nf1 {[%clk 0:03:03.3]} 13... Ne4 {[%clk 0:02:45]} 14. Ng3 {[%clk
0:03:03.5]} 14... f5 {[%clk 0:02:41]} 15. Nxe4 {[%clk 0:03:02.4]} 15... dxe4
{[%clk 0:02:40.3]} 16. Bd2 {[%clk 0:03:02.3]} 16... Nxe5 {[%clk 0:02:39.4]} 17.
fxe5 {[%clk 0:03:01.9]} 17... Qb6 {[%clk 0:02:28.5]} 18. Be1 {[%clk 0:02:53]}
18... Rfd8 {[%clk 0:02:17.8]} 19. Bh4 {[%clk 0:02:50.9]} 19... Bxh4 {[%clk
0:02:16.9]} 20. Rxh4 {[%clk 0:02:50.3]} 20... Rd7 {[%clk 0:02:17.8]} 21. Rf1
{[%clk 0:02:49]} 21... cxd4 {[%clk 0:02:10.7]} 22. exd4 {[%clk 0:02:48.8]} 22...
Qb5 {[%clk 0:02:08.2]} 23. Qf2 {[%clk 0:02:44.8]} 23... Qa5 {[%clk 0:01:57.5]}
24. a3 {[%clk 0:02:41.6]} 24... b5 {[%clk 0:01:57.6]} 25. Qd2 {[%clk 0:02:36.8]}
25... Qd8 {[%clk 0:01:55.8]} 26. Qh6 {[%clk 0:02:34.2]} 26... Qf8 {[%clk
0:01:55.2]} 27. Qg5 {[%clk 0:02:29.9]} 27... Qe7 {[%clk 0:01:53.9]} 28. Qxe7
{[%clk 0:02:22]} 28... Rxe7 {[%clk 0:01:54.8]} 29. g4 {[%clk 0:02:22.2]} 29...
a5 {[%clk 0:01:36.5]} 30. gxf5 {[%clk 0:02:21.9]} 30... gxf5 {[%clk 0:01:37.3]}
31. Kf2 {[%clk 0:02:19.7]} 31... Rg7 {[%clk 0:01:34.4]} 32. Rh6 {[%clk
0:02:19.2]} 32... Rg6 {[%clk 0:01:33.3]} 33. Rxg6+ {[%clk 0:02:09.1]} 33... hxg6
{[%clk 0:01:34.2]} 34. Ke3 {[%clk 0:02:07.8]} 34... Kg7 {[%clk 0:01:31.7]} 35.
Rc1 {[%clk 0:01:20.2]} 35... Rh8 {[%clk 0:01:30.9]} 36. b4 {[%clk 0:01:14.3]}
36... Rh3+ {[%clk 0:01:26.8]} 37. Ke2 {[%clk 0:01:05.4]} 37... Rxh2+ {[%clk
0:01:25.8]} 38. Ke3 {[%clk 0:01:04]} 38... axb4 {[%clk 0:01:24.5]} 39. axb4
{[%clk 0:00:57.1]} 39... Rh3+ {[%clk 0:01:24.5]} 40. Kf2 {[%clk 0:00:55.8]}
40... f4 {[%clk 0:01:24.3]} 41. c4 {[%clk 0:00:55.8]} 41... bxc4 {[%clk
0:01:22.2]} 42. Rxc4 {[%clk 0:00:55.7]} 42... Rh2+ {[%clk 0:01:22.5]} 43. Kg1
{[%clk 0:00:56]} 43... Rb2 {[%clk 0:01:19.7]} 44. Rc7+ {[%clk 0:00:55.6]} 44...
Kh6 {[%clk 0:01:19.4]} 45. d5 {[%clk 0:00:54.3]} 45... e3 {[%clk 0:01:11.5]} 46.
Rc4 {[%clk 0:00:52.4]} 46... Rb1+ {[%clk 0:00:57.6]} 47. Kg2 {[%clk 0:00:51.6]}
47... e2 {[%clk 0:00:58.2]} 48. Re4 {[%clk 0:00:37.5]} 48... e1=Q {[%clk
0:00:57.8]} 49. Rxe1 {[%clk 0:00:35.2]} 49... Rxe1 {[%clk 0:00:58.7]} 0-1

[Event "Late-Titled-Tuesday-Blitz-February-13-2024"]
[Site "Chess.com"]
[Date "2024.02.13"]
[Round "3"]
[White "dorpato"]
[Black "romulocardoso"]
[Result "0-1"]
[WhiteElo "2113"]
[BlackElo "2359"]
[TimeControl "180+1"]
[EndTime "14:27:25 PST"]
[Termination "romulocardoso won by resignation"]

1. e4 {[%clk 0:02:47.6]} 1... c5 {[%clk 0:03:00.2]} 2. Nc3 {[%clk 0:02:45.3]}
2... g6 {[%clk 0:03:00.7]} 3. g3 {[%clk 0:02:44.1]} 3... Nc6 {[%clk 0:03:01.3]}
4. Bg2 {[%clk 0:02:44]} 4... Bg7 {[%clk 0:03:01.8]} 5. d3 {[%clk 0:02:43.4]}
5... e5 {[%clk 0:03:02.2]} 6. Be3 {[%clk 0:02:42.2]} 6... d6 {[%clk 0:03:01.7]}
7. Qd2 {[%clk 0:02:38.8]} 7... Nge7 {[%clk 0:03:01.5]} 8. Bh6 {[%clk 0:02:37.4]}
8... O-O {[%clk 0:03:01.5]} 9. h4 {[%clk 0:02:35.4]} 9... f5 {[%clk 0:02:34.3]}
10. Nge2 {[%clk 0:02:11.9]} 10... f4 {[%clk 0:02:26.3]} 11. Bxg7 {[%clk
0:02:11.2]} 11... Kxg7 {[%clk 0:02:26.8]} 12. gxf4 {[%clk 0:02:11.1]} 12... exf4
{[%clk 0:02:27.1]} 13. Nxf4 {[%clk 0:02:09.6]} 13... Nd4 {[%clk 0:02:23.7]} 14.
O-O-O {[%clk 0:02:04.3]} 14... b5 {[%clk 0:02:00.5]} 15. h5 {[%clk 0:01:54.3]}
15... b4 {[%clk 0:01:59]} 16. Ncd5 {[%clk 0:01:43]} 16... Nxd5 {[%clk
0:01:58.4]} 17. Nxd5 {[%clk 0:01:39.8]} 17... g5 {[%clk 0:01:43.2]} 18. h6+
{[%clk 0:01:24.6]} 18... Kh8 {[%clk 0:01:41.9]} 19. Rdg1 {[%clk 0:01:13.8]}
19... Be6 {[%clk 0:01:30.3]} 20. Rh5 {[%clk 0:00:48.8]} 20... Bxd5 {[%clk
0:01:28.4]} 21. exd5 {[%clk 0:00:47.6]} 21... Qf6 {[%clk 0:01:28.4]} 22. Rxg5
{[%clk 0:00:32.3]} 22... Qxf2 {[%clk 0:01:16.6]} 23. Rg8+ {[%clk 0:00:19.7]}
23... Kxg8 {[%clk 0:01:09.7]} 24. Qg5+ {[%clk 0:00:20.2]} 24... Kf7 {[%clk
0:01:07.2]} 25. Rf1 {[%clk 0:00:20.6]} 25... Ke8 {[%clk 0:01:01.5]} 26. Rxf2
{[%clk 0:00:18.9]} 26... Rxf2 {[%clk 0:01:02.4]} 27. Qh5+ {[%clk 0:00:19.2]}
27... Kd7 {[%clk 0:00:59]} 28. Bh3+ {[%clk 0:00:18.4]} 28... Kc7 {[%clk
0:00:59.4]} 29. Qg4 {[%clk 0:00:17.2]} 29... Rxc2+ {[%clk 0:00:58.8]} 30. Kb1
{[%clk 0:00:17]} 30... Rd8 {[%clk 0:00:50.9]} 31. Qg7+ {[%clk 0:00:16.7]} 31...
Kb6 {[%clk 0:00:50.1]} 32. Qxh7 {[%clk 0:00:14.9]} 32... Re8 {[%clk 0:00:48.1]}
33. a3 {[%clk 0:00:11.5]} 33... b3 {[%clk 0:00:47.6]} 34. Qe4 {[%clk 0:00:04.2]}
34... Rxe4 {[%clk 0:00:46.7]} 35. dxe4 {[%clk 0:00:05.1]} 35... Rh2 {[%clk
0:00:47.3]} 0-1

[Event "Late-Titled-Tuesday-Blitz-February-13-2024"]
[Site "Chess.com"]
[Date "2024.02.13"]
[Round "3"]
[White "KarolKacprzak"]
[Black "ChristopherYoo"]
[Result "0-1"]
[WhiteElo "2720"]
[BlackElo "2968"]
[TimeControl "180+1"]
[EndTime "14:27:27 PST"]
[Termination "ChristopherYoo won by resignation"]

1. e4 {[%clk 0:03:00.9]} 1... e5 {[%clk 0:02:59.8]} 2. Nf3 {[%clk 0:03:00.5]}
2... Nc6 {[%clk 0:03:00.3]} 3. Bb5 {[%clk 0:03:01]} 3... a6 {[%clk 0:02:59.7]}
4. Ba4 {[%clk 0:03:01.4]} 4... Nf6 {[%clk 0:03:00.2]} 5. O-O {[%clk 0:03:01.9]}
5... Nxe4 {[%clk 0:02:58.9]} 6. d4 {[%clk 0:03:00.7]} 6... b5 {[%clk 0:02:59.1]}
7. Bb3 {[%clk 0:03:00.6]} 7... d5 {[%clk 0:02:59.8]} 8. dxe5 {[%clk 0:03:00.5]}
8... Be6 {[%clk 0:03:00]} 9. Qe2 {[%clk 0:02:56.5]} 9... Be7 {[%clk 0:02:53.6]}
10. Rd1 {[%clk 0:02:56]} 10... O-O {[%clk 0:02:53.4]} 11. c4 {[%clk 0:02:56.3]}
11... bxc4 {[%clk 0:02:50.1]} 12. Bxc4 {[%clk 0:02:57.2]} 12... Bc5 {[%clk
0:02:46.9]} 13. Be3 {[%clk 0:02:57]} 13... Bxe3 {[%clk 0:02:46.6]} 14. Qxe3
{[%clk 0:02:57.9]} 14... Qb8 {[%clk 0:02:46.4]} 15. Bb3 {[%clk 0:02:56.7]} 15...
Na5 {[%clk 0:02:42.6]} 16. Nbd2 {[%clk 0:02:50.7]} 16... Nxd2 {[%clk 0:02:32.1]}
17. Nxd2 {[%clk 0:02:38.5]} 17... Qb4 {[%clk 0:02:14.1]} 18. Rac1 {[%clk
0:02:24.1]} 18... d4 {[%clk 0:02:13.7]} 19. Qg3 {[%clk 0:02:13.3]} 19... Nxb3
{[%clk 0:02:11]} 20. axb3 {[%clk 0:02:07.8]} 20... c5 {[%clk 0:01:44.1]} 21. Ne4
{[%clk 0:01:17]} 21... Rac8 {[%clk 0:01:26.3]} 22. Rd3 {[%clk 0:01:04.5]} 22...
Bf5 {[%clk 0:01:20.5]} 23. Qf4 {[%clk 0:00:54.4]} 23... Bg6 {[%clk 0:01:20]} 24.
Rg3 {[%clk 0:00:49.7]} 24... d3 {[%clk 0:01:15]} 25. Re3 {[%clk 0:00:36.9]}
25... Qxb3 {[%clk 0:00:57.9]} 26. h4 {[%clk 0:00:29.3]} 26... Qxb2 {[%clk
0:00:39]} 27. Rd1 {[%clk 0:00:29.2]} 27... Bxe4 {[%clk 0:00:35.1]} 28. Qxe4
{[%clk 0:00:23.7]} 28... c4 {[%clk 0:00:35.5]} 29. h5 {[%clk 0:00:19.9]} 29...
h6 {[%clk 0:00:32.7]} 30. Rg3 {[%clk 0:00:17.7]} 30... Qe2 {[%clk 0:00:32.9]}
31. Qxe2 {[%clk 0:00:06.8]} 31... dxe2 {[%clk 0:00:33.8]} 32. Rc1 {[%clk
0:00:07.7]} 32... Rfd8 {[%clk 0:00:32.9]} 0-1

[Event "Late-Titled-Tuesday-Blitz-February-13-2024"]
[Site "Chess.com"]
[Date "2024.02.13"]
[Round "3"]
[White "JoakimVonAnd"]
[Black "Durarbayli"]
[Result "0-1"]
[WhiteElo "2688"]
[BlackElo "2916"]
[TimeControl "180+1"]
[EndTime "14:27:35 PST"]
[Termination "Durarbayli won by resignation"]

1. Nf3 {[%clk 0:03:00.9]} 1... d5 {[%clk 0:02:58.3]} 2. g3 {[%clk 0:03:01.1]}
2... g6 {[%clk 0:02:55.7]} 3. Bg2 {[%clk 0:02:59.2]} 3... Bg7 {[%clk 0:02:56.3]}
4. O-O {[%clk 0:02:55.2]} 4... e5 {[%clk 0:02:56.2]} 5. d3 {[%clk 0:02:55.6]}
5... Nc6 {[%clk 0:02:55.3]} 6. e4 {[%clk 0:02:52.5]} 6... Nge7 {[%clk
0:02:47.8]} 7. c4 {[%clk 0:02:48.9]} 7... dxe4 {[%clk 0:02:24.9]} 8. dxe4 {[%clk
0:02:49]} 8... Qxd1 {[%clk 0:02:25.6]} 9. Rxd1 {[%clk 0:02:48.8]} 9... Bg4
{[%clk 0:02:26.4]} 10. Re1 {[%clk 0:02:26.6]} 10... O-O-O {[%clk 0:02:05.9]} 11.
Nc3 {[%clk 0:02:25.3]} 11... Nb4 {[%clk 0:01:49.9]} 12. Re2 {[%clk 0:02:03.2]}
12... Nec6 {[%clk 0:01:32.9]} 13. Nd5 {[%clk 0:01:50.5]} 13... Bxf3 {[%clk
0:01:13.9]} 14. Bxf3 {[%clk 0:01:49.1]} 14... Nxd5 {[%clk 0:01:14.2]} 15. cxd5
{[%clk 0:01:35.1]} 15... Nd4 {[%clk 0:01:14.1]} 16. Kg2 {[%clk 0:01:14.4]} 16...
Nxe2 {[%clk 0:01:10.5]} 17. Bxe2 {[%clk 0:01:15.3]} 17... f5 {[%clk 0:00:59.9]}
18. Bg5 {[%clk 0:01:07.2]} 18... Rd6 {[%clk 0:00:56.7]} 19. Rc1 {[%clk
0:01:05.6]} 19... fxe4 {[%clk 0:00:48.1]} 20. Be7 {[%clk 0:01:00.3]} 20... Rxd5
{[%clk 0:00:44.3]} 21. Bc4 {[%clk 0:00:50.1]} 21... Rd2 {[%clk 0:00:42.3]} 22.
Be6+ {[%clk 0:00:45.7]} 22... Kb8 {[%clk 0:00:41.8]} 23. Bg5 {[%clk 0:00:37.1]}
23... Rxb2 {[%clk 0:00:41.5]} 24. Rd1 {[%clk 0:00:37.8]} 24... Rf8 {[%clk
0:00:34.4]} 25. Be3 {[%clk 0:00:36.7]} 25... Bf6 {[%clk 0:00:28]} 26. Rd7 {[%clk
0:00:36]} 26... h5 {[%clk 0:00:28.1]} 27. Bc5 {[%clk 0:00:32.9]} 27... Rd8
{[%clk 0:00:21.7]} 28. Rf7 {[%clk 0:00:32.9]} 28... Bg5 {[%clk 0:00:22.3]} 29.
h4 {[%clk 0:00:33.2]} 29... Bc1 {[%clk 0:00:20.6]} 30. Be7 {[%clk 0:00:26.3]}
30... Re8 {[%clk 0:00:20.9]} 31. Bd7 {[%clk 0:00:26.3]} 31... Rg8 {[%clk
0:00:21.4]} 32. Be6 {[%clk 0:00:26.2]} 32... e3 {[%clk 0:00:20.4]} 33. Bc5
{[%clk 0:00:24.9]} 33... e2 {[%clk 0:00:17.7]} 34. Rd7 {[%clk 0:00:18.9]} 34...
Rc8 {[%clk 0:00:15.4]} 0-1